[Event "FRA-ch Youth U20W 2019"]
[Site "Hyeres"]
[Date "2019.04.15"]
[Round "2.2"]
[White "Budak, Lori"]
[Black "Aouachria, Marwa"]
[Result "0-1"]
[ECO "B24"]
[WhiteElo "1679"]
[BlackElo "1738"]
[Annotator "NA RC"]
[PlyCount "143"]
[EventDate "2019.04.14"]
[EventType "swiss"]
[EventCountry "FRA"]
[SourceTitle "playchess.com"]
[Source "ChessBase"]
[SourceQuality "1"]
[TimeControl "5400+30"]

1. e4 {[%emt 0:00:00]} c5 {[%emt 0:00:00]} 2. Nc3 {[%emt 0:00:00]} e6 {[%emt 0:05:22]} 3. g3 {[%emt 1:31:30]} Nc6 {[%emt 0:00:24]} 4. Bg2 {[%emt 0:00:15]} Nge7 {[%emt 0:00:06]} 5. f4 {[%emt 0:00:18]} g6 {[%emt 0:00:18]} 6. Nf3 {[%emt 1:27:21]} Bg7 {[%emt 0:00:13]} 7. O-O {[%emt 0:00:15]} a6 {[%emt 0:02:25]} 8. d3 {[%emt 0:06:13]} d5 {[%emt 0:01:23]} 9. Ne2 {[%emt 0:05:33]} O-O {[%emt 0:03:50]} 10. c3 {[%emt 0:03:05]} dxe4 {[%emt 0:10:09]} 11. dxe4 {[%emt 0:00:39]} Qc7 {[%emt 0:05:06]} 12. Qc2 {[%emt 0:04:33]} b6 {[%emt 0:07:17]} 13. Be3 {[%emt 0:02:16]} Bb7 {[%emt 0:00:37]} 14. Rad1 {[%emt 0:00:59]} Rfd8 {[%emt 0:02:11]} 15. g4 {[%emt 0:28:22]} Rxd1 {[%emt 0:15:58]} 16. Rxd1 {[%emt 0:00:33]} Rd8 {[%emt 0:01:00]} 17. Ng3 {[%emt 0:06:06]} Na5 {[%emt 0:13:46]} 18. Bc1 {[%emt 0:13:35]} Rd7 {[%emt 0:28:55]} 19. h4 {[%emt 0:05:43]} b5 {[%emt 0:04:48]} 20. Rxd7 {[%emt 0:04:07]} Qxd7 {[%emt 0:00:05]} 21. Be3 {[%emt 0:00:31]} c4 {[%emt 0:02:24]} 22. Bc5 {[%emt 0:05:05]} Nac6 {[%emt 0:04:10]} 23. Kf2 {[%emt 0:03:44]} Bf8 {[%emt 0:04:16]} 24. Bd4 {[%emt 0:03:35]} Nxd4 {[%emt 0:00:30]} 25. Nxd4 {[%emt 0:00:10]} Nc6 {[%emt 0:00:25]} 26. Nge2 {[%emt 0:00:42]} Bc5 {[%emt 0:00:30]} 27. Qd2 {[%emt 0:00:42]} e5 {[%emt 0:00:39]} 28. fxe5 {[%emt 0:00:28]} Qxg4 {[%emt 0:00:48]} 29. Qg5 {[%emt 0:00:38]} Qxg5 {[%emt 0:00:40]} 30. hxg5 {[%emt 0:00:02]} Nxe5 {[%emt 0:00:13]} 31. Kg3 {[%emt 0:00:45]} Be7 {[%emt 0:06:03]} 32. Kf4 {[%emt 0:00:43]} Nd3+ {[%emt 0:00:13]} 33. Ke3 {[%emt 0:00:29]} Bxg5+ {[%emt 0:00:07]} 34. Kf3 {[%emt 0:01:06]} Ne1+ {[%emt 0:01:43]} 35. Kg4 {[%emt 0:00:18]} Nxg2 {[%emt 0:00:32]} 36. Kxg5 {[%emt 0:00:01]} Bxe4 {[%emt 0:05:18]} 37. Ng3 {[%emt 0:00:53]} Bb7 {[%emt 0:00:42]} 38. Kf6 {[%emt 0:01:40]} h5 {[%emt 0:00:44]} 39. Nf1 {[%emt 0:00:37]} Ne1 {[%emt 0:01:31]} 40. Ke7 {[%emt 0:00:32]} h4 {[%emt 0:00:44]} 41. Kd6 {[%emt 0:00:22]} Nd3 {[%emt 0:01:02]} 42. b3 {[%emt 0:00:22]} Kg7 {[%emt 0:01:25]} 43. Kc7 {[%emt 0:00:09]} Bg2 {[%emt 0:00:28]} 44. Nh2 {[%emt 0:00:52]} Nc1 {[%emt 0:01:24]} 45. bxc4 {[%emt 0:00:03]} bxc4 {[%emt 0:00:08]} 46. a4 {[%emt 0:00:32]} Na2 {[%emt 0:00:32]} 47. Ne2 {[%emt 0:00:11]} g5 {[%emt 0:00:53]} 48. Kb6 {[%emt 0:00:34]} f5 {[%emt 0:00:21]} 49. Kxa6 {[%emt 0:01:58]} f4 {[%emt 0:00:32]} 50. Nd4 {[%emt 0:00:46]} Nxc3 {[%emt 0:00:21]} 51. a5 {[%emt 0:00:25]} Nd5 {[%emt 0:00:34]} 52. Kb5 {[%emt 0:00:53]} c3 {[%emt 0:00:31]} 53. Kc5 {[%emt 0:00:26]} Kf6 {[%emt 0:00:55]} 54. Ng4+ {[%emt 0:00:35]} Ke7 {[%emt 0:00:12]} 55. a6 {[%emt 0:00:22]} Nc7 {[%emt 0:00:24]} 56. a7 {[%emt 0:00:46]} Kd7 {[%emt 0:00:36]} 57. Ne5+ {[%emt 0:00:34]} Kc8 {[%emt 0:00:24]} 58. Kb6 {[%emt 0:00:33]} Na8+ {[%emt 0:00:41]} 59. Ka6 {[%emt 0:00:29]} Bf1+ {[%emt 0:00:12]} 60. Ka5 {[%emt 0:00:23]} Kb7 {[%emt 0:00:21]} 61. Kb4 {[%emt 0:00:40]} h3 {[%emt 0:01:00]} 62. Ng4 {[%emt 0:00:07]} Bg2 {[%emt 0:00:24]} 63. Kxc3 {[%emt 0:00:32]} f3 {[%emt 0:00:07]} 64. Ne6 {[%emt 0:00:47]} Nb6 {[%emt 0:00:23]} 65. Nxg5 {[%emt 0:00:29]} Nd5+ {[%emt 0:00:03]} 66. Kd4 {[%emt 0:00:19]} Nf6 {[%emt 0:00:57]} 67. Nh2 {[%emt 0:01:19]} f2 {[%emt 0:00:21]} 68. Kd3 {[%emt 0:00:41]} Ng4 {[%emt 0:01:58]} 69. Nxg4 {[%emt 0:01:01]} f1=Q+ {[%emt 0:00:06]} 70. Ke3 {[%emt 0:00:13]} Qc1+ {[%emt 0:00:10]} 71. Kf2 {[%emt 0:00:39]} Qxg5 {[%emt 0:00:20]} 72. Nh2 {[%emt 0:01:09]} 0-1

[Event "FRA-ch Youth U20W 2019"]
[Site "Hyeres"]
[Date "2019.04.15"]
[Round "2.3"]
[White "Milroy, Melena"]
[Black "Guigue, Marie-Celine"]
[Result "1-0"]
[ECO "C56"]
[WhiteElo "1720"]
[BlackElo "1338"]
[Annotator "NA RC"]
[PlyCount "85"]
[EventDate "2019.04.14"]
[EventType "swiss"]
[EventCountry "FRA"]
[SourceTitle "playchess.com"]
[Source "ChessBase"]
[SourceQuality "1"]
[TimeControl "5400+30"]

1. e4 {[%emt 0:00:00]} e5 {[%emt 0:00:00]} 2. Bc4 {[%emt 0:00:00]} Nf6 {[%emt 0:00:09]} 3. d4 {[%emt 0:00:00]} exd4 {[%emt 0:02:03]} 4. Nf3 {[%emt 0:00:00]} Nc6 {[%emt 0:03:03]} 5. e5 {[%emt 0:00:00]} Ng4 {[%emt 0:00:12]} 6. Bxf7+ {[%emt 0:02:02]} Kxf7 {[%emt 0:01:04]} 7. Ng5+ {[%emt 0:00:08]} Kg8 {[%emt 0:00:32]} 8. Qxg4 {[%emt 0:00:17]} d6 {[%emt 0:03:00]} 9. Qf3 {[%emt 0:01:32]} Qe7 {[%emt 0:21:44]} 10. Qd5+ {[%emt 0:00:38]} Be6 {[%emt 0:00:31]} 11. Qxe6+ {[%emt 0:00:44]} Qxe6 {[%emt 0:00:14]} 12. Nxe6 {[%emt 0:00:04]} Rc8 {[%emt 0:02:48]} 13. Nxf8 {[%emt 0:01:01]} Rxf8 {[%emt 0:01:13]} 14. exd6 {[%emt 0:00:10]} cxd6 {[%emt 0:00:06]} 15. O-O {[%emt 0:00:29]} g6 {[%emt 0:02:02]} 16. b3 {[%emt 0:01:06]} h5 {[%emt 0:02:12]} 17. Bb2 {[%emt 0:00:55]} Rh7 {[%emt 0:00:57]} 18. Nd2 {[%emt 0:00:56]} Nb4 {[%emt 0:02:13]} 19. Rfc1 {[%emt 0:01:12]} Rc7 {[%emt 0:00:59]} 20. Bxd4 {[%emt 0:08:25]} Rxc2 {[%emt 0:04:41]} 21. Nf3 {[%emt 0:01:56]} Rfc8 {[%emt 0:22:35]} 22. Rxc2 {[%emt 0:04:47]} Rxc2 {[%emt 0:00:15]} 23. a3 {[%emt 0:01:38]} Nc6 {[%emt 0:00:45]} 24. Be3 {[%emt 0:00:14]} Rc3 {[%emt 0:06:19]} 25. b4 {[%emt 0:00:21]} a6 {[%emt 0:00:30]} 26. g3 {[%emt 0:01:27]} Rd3 {[%emt 0:08:24]} 27. Kg2 {[%emt 0:00:23]} Kf7 {[%emt 0:00:41]} 28. Kh3 {[%emt 0:01:11]} Kf6 {[%emt 0:03:53]} 29. Ne1 {[%emt 0:05:14]} Rd5 {[%emt 0:05:32]} 30. Nc2 {[%emt 0:02:28]} Rd3 {[%emt 0:02:24]} 31. Re1 {[%emt 0:01:37]} Rd5 {[%emt 0:01:45]} 32. Bc1 {[%emt 0:01:43]} Kf7 {[%emt 0:01:18]} 33. f4 {[%emt 0:00:31]} Ne7 {[%emt 0:01:30]} 34. Ne3 {[%emt 0:01:30]} Rd3 {[%emt 0:00:21]} 35. Rd1 {[%emt 0:01:20]} Rxd1 {[%emt 0:00:15]} 36. Nxd1 {[%emt 0:00:05]} Ke6 {[%emt 0:00:18]} 37. Ne3 {[%emt 0:00:40]} Nf5 {[%emt 0:00:46]} 38. Nxf5 {[%emt 0:00:13]} Kxf5 {[%emt 0:00:04]} 39. Kh4 {[%emt 0:00:08]} b5 {[%emt 0:00:21]} 40. Bb2 {[%emt 0:00:14]} d5 {[%emt 0:00:45]} 41. Ba1 {[%emt 0:00:18]} Ke6 {[%emt 0:00:23]} 42. Kg5 {[%emt 0:00:09]} Kf7 {[%emt 0:00:35]} 43. Bd4 {[%emt 0:00:11]} 1-0

[Event "FRA-ch Youth U20W 2019"]
[Site "Hyeres"]
[Date "2019.04.15"]
[Round "2.4"]
[White "Ranguin, Anna"]
[Black "Aubert, Laurane"]
[Result "0-1"]
[ECO "D30"]
[WhiteElo "1539"]
[BlackElo "1953"]
[Annotator "NA RC"]
[PlyCount "92"]
[EventDate "2019.04.14"]
[EventType "swiss"]
[EventCountry "FRA"]
[SourceTitle "playchess.com"]
[Source "ChessBase"]
[SourceQuality "1"]
[TimeControl "5400+30"]

{[%evp 10,92,11,32767,32767,4,5,4,0,-7,30,18,20,24,35,26,33,31,26,33,20,30,31,28,32767,21,37,35,37,30,38,29,27,22,36,-175,-142,-141,-112,-124,-115,-341,-344,-334,-322,-715,-744,-684,-765,-735,-789,-782,-786,32767,-1782,-1642,-3022,-1462,-1556,32767,32767,32767,-5289,32767,-1349,-6303,32767,32767,32767,32767,-705,-29979,32767,32767,-810,32767,32767,-29980,32767,32767,32767,32767,-1905,-1230,-1774]} 1. d4 {[%emt 0:00:00]} d5 {[%emt 0:00:00]} 2. c4 {[%emt 0:00:00]} e6 {[%emt 0:00:00]} 3. Nf3 {[%emt 0:00:08]} Nf6 {[%emt 0:00:00]} 4. Bg5 {[%emt 0:00:34]} Bb4+ {[%emt 0:02:39]} 5. Nbd2 {[%emt 0:01:20]} h6 {[%emt 0:02:14]} (5... dxc4 6. e4 Bxd2+ 7. Nxd2 Qxd4 8. Qc2 Nc6 9. Bxc4 h6 10. Be3 Qd6 11. Bb5 Bd7 12. O-O-O Nb4 13. Bxd7+ Nxd7 {½-½ (56) Mamedyarov,S (2817)-Harikrishna,P (2729) Kolkata 2018}) 6. Bf4 {[%emt 0:01:55] D30: Queen's Gambit Declined: Systems without Nc3} c5 $146 {[%emt 0:06:55]} ({Predecessor:} 6... O-O 7. e3 c5 8. dxc5 Bxc5 9. Bd3 Nc6 10. O-O Qe7 11. a3 a5 12. Qc2 {0-1 (31) Kariakina,M-Titova,A Cherepovets 2001}) 7. dxc5 {[%emt 0:04:46]} Bxc5 {[%emt 0:00:40]} 8. e3 {[%emt 0:01:12]} Nc6 {[%emt 0:01:06]} 9. a3 {[%emt 0:03:49]} a5 {[%emt 0:02:53]} 10. Nb3 {[%emt 0:04:04]} Bd6 {[%emt 0:05:45]} 11. Bxd6 {[%emt 0:01:31]} Qxd6 {[%emt 0:00:06]} 12. cxd5 {[%emt 0:02:04]} exd5 {[%emt 0:02:54]} 13. h3 {[%emt 0:02:56]} O-O {[%emt 0:04:37]} 14. Bd3 {[%emt 0:00:50]} Ne5 {[%emt 0:07:37]} 15. Nxe5 {[%emt 0:01:30]} Qxe5 {[%emt 0:00:05]} 16. Nd4 {[%emt 0:00:34]} Ne4 {[%emt 0:06:58]} 17. Rc1 {[%emt 0:03:34]} Bd7 {[%emt 0:04:39]} 18. O-O {[%emt 0:01:19]} Rac8 {[%emt 0:01:07]} 19. Qe2 {[%emt 0:03:39]} Qg5 {[%emt 0:03:55]} 20. Kh1 {[%emt 0:04:02]} Qh4 {[%emt 0:03:38]} 21. Nf3 {[%emt 0:03:28]} Qh5 {[%emt 0:06:17]} 22. Bb5 $2 {[%emt 0:01:48]} (22. Kg1 $14 {stays ahead.}) 22... Bxb5 {[%emt 0:04:07]} 23. Qxb5 {[%emt 0:00:25]} Rxc1 {[%emt 0:00:24]} 24. Rxc1 {[%emt 0:00:37]} Nxf2+ {[%emt 0:00:06]} 25. Kg1 $2 {[%emt 0:01:19] [#]} (25. Kh2 $17 {was the only chance.}) 25... Nxh3+ $1 {[%emt 0:03:07]} 26. Kf1 {[%emt 0:02:06]} Ng5 {[%emt 0:07:30]} 27. Qxd5 $2 {[%emt 0:02:32]} (27. Kf2) 27... Qh1+ {[%emt 0:00:31]} 28. Ng1 {[%emt 0:00:13] [#]} Nh3 $1 {[%emt 0:01:07] Pin} 29. Ke2 {[%emt 0:02:37]} Nxg1+ {[%emt 0:00:27]} 30. Kd2 {[%emt 0:00:56]} Qh4 {[%emt 0:02:43]} 31. Qxb7 {[%emt 0:01:53]} Qf2+ {[%emt 0:01:05]} 32. Kd3 {[%emt 0:02:20]} Rd8+ {[%emt 0:02:08]} 33. Kc4 {[%emt 0:01:17]} Qxe3 {[%emt 0:02:33]} 34. Rc3 {[%emt 0:01:20]} Qe6+ {[%emt 0:01:52]} 35. Kb5 {[%emt 0:01:34]} Ne2 {[%emt 0:03:30]} 36. Rc7 {[%emt 0:02:23]} Qe8+ {[%emt 0:06:38]} 37. Kc4 {[%emt 0:02:27]} Qa4+ {[%emt 0:01:15]} 38. Kc5 {[%emt 0:01:26]} Qd4+ {[%emt 0:00:47]} 39. Kc6 {[%emt 0:03:35]} Rd6+ {[%emt 0:01:22]} 40. Kb5 {[%emt 0:00:12]} Qxb2+ {[%emt 0:00:35]} 41. Kc4 {[%emt 0:01:36]} Qc3+ {[%emt 0:01:26]} 42. Kb5 {[%emt 0:00:42]} Qb3+ {[%emt 0:00:32]} 43. Kxa5 {[%emt 0:01:41]} Qxa3+ {[%emt 0:00:12]} 44. Kb5 {[%emt 0:00:13]} Qb3+ {[%emt 0:01:08]} 45. Kc5 {[%emt 0:00:39]} Qxb7 $19 {[%emt 0:00:44]} (45... Qd3 $142 46. Kb4 Rd4+ 47. Ka5 Qa3+ 48. Kb6 Rb4+ 49. Kc6 Nd4+ 50. Kd7 Qa4+ 51. Kd6 Rxb7 52. Rxb7 Qc6+ 53. Ke5 Ne2 54. Rb6 f6+ 55. Kf5 Qd5+ 56. Kg4 Qxg2+ 57. Kh4 Qg5+ 58. Kh3 Qg3#) 46. Rxb7 {[%emt 0:00:10]} Rg6 {[%emt 0:00:16]} 0-1

[Event "FRA-ch Youth U20W 2019"]
[Site "Hyeres"]
[Date "2019.04.15"]
[Round "2.5"]
[White "Fretel, Liza"]
[Black "Fromherz, Audrey"]
[Result "1-0"]
[ECO "B26"]
[WhiteElo "1892"]
[BlackElo "1531"]
[Annotator "NA RC"]
[PlyCount "97"]
[EventDate "2019.04.14"]
[EventType "swiss"]
[EventCountry "FRA"]
[SourceTitle "playchess.com"]
[Source "ChessBase"]
[SourceQuality "1"]
[TimeControl "5400+30"]

{[%evp 17,97,-10,-4,-55,8,-11,13,14,44,0,18,-15,-19,-22,32767,-25,-32,-41,0,18,0,0,32,0,22,25,39,38,75,102,73,44,58,64,79,83,145,162,187,140,187,142,134,129,32767,151,32767,160,158,136,141,32767,32767,32767,32767,186,32767,168,287,301,414,32767,32767,32767,32767,32767,32767,634,32767,794,806,938,744,32767,32767,879,912,882,32767,32767,29996,29997]} 1. e4 {[%emt 0:00:00]} c5 {[%emt 0:00:15]} 2. Nc3 {[%emt 0:00:00]} Nc6 {[%emt 0:00:26]} 3. g3 {[%emt 0:00:00]} g6 {[%emt 0:00:29]} 4. Bg2 {[%emt 0:00:00]} Bg7 {[%emt 0:00:14]} 5. d3 {[%emt 0:00:07]} e6 {[%emt 0:00:42]} 6. Be3 {[%emt 0:00:09]} d6 {[%emt 0:05:41]} 7. Nge2 {[%emt 0:00:18]} Nge7 {[%emt 0:00:37]} 8. Qd2 {[%emt 0:00:48]} Nd4 {[%emt 0:05:03]} 9. Nd1 {[%emt 0:03:29]} O-O {[%emt 0:09:58]} 10. Nc1 {[%emt 0:00:17] B26: Closed Sicilian: 3 g3, lines with early Be3} f5 $146 {[%emt 0:07:34]} ({Predecessor:} 10... Ndc6 11. Bh6 Re8 12. h4 Bh8 13. h5 Qc7 14. c3 b6 15. hxg6 fxg6 16. Qg5 e5 {0-1 (43) Gevorgyan,M (2228)-Tsatsalashvili,K (2303) St Petersburg 2018}) 11. c3 {[%emt 0:00:12]} Ndc6 {[%emt 0:00:29]} 12. h4 {[%emt 0:07:47]} Ne5 {[%emt 0:06:59]} 13. Qe2 {[%emt 0:07:53]} Ng4 {[%emt 0:05:19]} 14. Bg5 {[%emt 0:03:53]} h6 {[%emt 0:05:04]} 15. Bxe7 {[%emt 0:01:15]} Qxe7 {[%emt 0:00:06]} 16. exf5 {[%emt 0:02:16]} gxf5 {[%emt 0:02:33]} 17. Ne3 {[%emt 0:04:20]} Qf7 {[%emt 0:04:33]} 18. Nxg4 {[%emt 0:02:02]} fxg4 {[%emt 0:00:07]} 19. O-O {[%emt 0:00:11]} e5 {[%emt 0:02:43]} 20. Nb3 {[%emt 0:00:44]} Rb8 {[%emt 0:03:07]} 21. Na5 {[%emt 0:05:48]} d5 {[%emt 0:03:18]} 22. c4 {[%emt 0:11:05]} Be6 {[%emt 0:04:19]} 23. cxd5 {[%emt 0:00:47]} Bxd5 {[%emt 0:03:42]} 24. Qxg4 {[%emt 0:03:47]} Bxg2 {[%emt 0:05:56]} 25. Kxg2 {[%emt 0:00:06]} Qd5+ {[%emt 0:00:05]} 26. Qe4 {[%emt 0:00:40]} Qxe4+ {[%emt 0:00:21]} ({Better is} 26... Rfd8) 27. dxe4 {[%emt 0:00:05]} b6 {[%emt 0:01:19]} 28. Nc4 {[%emt 0:00:56]} Rbd8 {[%emt 0:01:13]} 29. f3 {[%emt 0:06:22]} Rd4 {[%emt 0:00:36]} 30. Ne3 {[%emt 0:00:20]} Rd2+ {[%emt 0:01:02]} 31. Rf2 {[%emt 0:00:10]} Rfd8 {[%emt 0:00:15]} 32. Nd5 {[%emt 0:00:24]} Rd3 {[%emt 0:01:29]} 33. h5 {[%emt 0:00:59]} Kf7 {[%emt 0:00:53]} 34. Rc1 {[%emt 0:02:19]} Rc8 {[%emt 0:05:22]} 35. Rfc2 {[%emt 0:00:31]} Rd4 {[%emt 0:01:18]} 36. b4 {[%emt 0:01:24]} c4 {[%emt 0:01:45]} 37. b5 {[%emt 0:04:53]} Bf8 {[%emt 0:03:54]} (37... Bf6 $142 38. Rc3 Ke6) 38. Ne3 {[%emt 0:02:24]} Ba3 {[%emt 0:03:55]} 39. Nxc4 {[%emt 0:01:00]} Bxc1 {[%emt 0:00:27]} 40. Nxe5+ {[%emt 0:30:19]} Ke6 {[%emt 0:01:02]} 41. Rxc8 {[%emt 0:00:00]} Rd2+ {[%emt 0:00:45]} 42. Kh3 {[%emt 0:00:00]} Ba3 {[%emt 0:03:31]} 43. Re8+ {[%emt 0:00:00]} Kf6 {[%emt 0:00:36]} 44. Ng4+ {[%emt 0:00:00]} Kg7 {[%emt 0:00:15]} 45. Re6 {[%emt 0:00:00]} Rd3 {[%emt 0:00:25]} 46. Rg6+ {[%emt 0:00:00]} Kf8 {[%emt 0:00:29]} 47. Rf6+ {[%emt 0:00:00]} Kg7 {[%emt 0:00:34]} 48. Rf7+ {[%emt 0:00:00]} Kh8 {[%emt 0:00:50]} 49. Nf6 {[%emt 0:00:00]} 1-0

[Event "FRA-ch Youth U20W 2019"]
[Site "Hyeres"]
[Date "2019.04.15"]
[Round "2.6"]
[White "Anastasie, Laure"]
[Black "Bellahcene, Anissa"]
[Result "0-1"]
[ECO "C55"]
[WhiteElo "1445"]
[BlackElo "1816"]
[Annotator "NA RC"]
[PlyCount "121"]
[EventDate "2019.04.14"]
[EventType "swiss"]
[EventCountry "FRA"]
[SourceTitle "playchess.com"]
[Source "ChessBase"]
[SourceQuality "1"]
[TimeControl "5400+30"]

{[%evp 8,105,27,32,32767,-14,52,47,32767,32767,21,-14,-16,-10,14,0,14,-23,-22,-114,-98,-278,-35,-191,-177,-291,-169,-312,-302,-267,-301,-297,-317,-445,32767,-635,-623,-612,-393,-401,-363,-428,-430,-820,-360,-367,-366,-358,-296,-271,-291,-306,-224,-218,-219,-220,-186,32767,-223,-209,-140,-140,-135,-132,-55,-104,-66,-80,-69,32767,-65,32767,32767,32767,-149,32767,32767,-135,-128,-142,-133,-135,-103,-99,-83,32767,-83,32767,32767,-5112,-29972,-5106,-6023,-29969,32767,-29947,-29977,-29954,-29979,-29980]} 1. e4 {[%emt 0:00:00]} e5 {[%emt 0:00:00]} 2. Nf3 {[%emt 0:00:00]} Nc6 {[%emt 0:00:00]} 3. Bc4 {[%emt 0:00:00]} Be7 {[%emt 0:00:20]} 4. O-O {[%emt 0:00:24]} d6 {[%emt 0:00:24]} 5. c3 {[%emt 0:04:49] LiveBook: 43 Games} Nf6 {[%emt 0:01:52]} 6. Re1 {[%emt 0:05:41] [#]} Bg4 {[%emt 0:00:39] C55: Two Knights: 4 d3, 4 d4 exd4 5 e5 and Max Lange Attack} (6... Nxe4 $1 $11 {[%mdl 512]} 7. Rxe4 d5 8. Nxe5 Nxe5 9. Bb5+ (9. Rxe5 dxc4 10. Na3 Be6 $11) 9... Nd7) (6... Nb8) 7. h3 {[%emt 0:00:27]} Bh5 {[%emt 0:00:22]} 8. Bb5 {[%emt 0:01:47]} O-O {[%emt 0:05:17]} 9. Bxc6 {[%emt 0:00:17]} bxc6 {[%emt 0:00:06]} 10. d4 {[%emt 0:00:42]} exd4 {[%emt 0:01:47]} 11. cxd4 {[%emt 0:01:05]} d5 {[%emt 0:05:27]} 12. Nbd2 $146 {[%emt 1:20:48]} ({Predecessor:} 12. g4 Bg6 13. exd5 {1-0 (39) Nemergut,P (2041)-Rahl,V (2081) Slovakia 2015}) 12... Bb4 {[%emt 0:03:24]} 13. Qb3 {[%emt 0:00:00]} (13. e5 $11 {remains equal.} Ne4 14. Nxe4 Bxe1 15. Ng3 Bxf3 16. Qxe1) 13... Rb8 {[%emt 0:00:15]} 14. Qc2 $2 {[%emt 0:00:00]} (14. Qe3 $17) 14... Nxe4 $2 {[%emt 0:04:19]} (14... Bxf3 $1 $19 15. gxf3 Nh5) 15. Rxe4 $2 {[%emt 0:00:00]} (15. a3 $15 Bxd2 16. Nxd2) 15... dxe4 {[%emt 0:01:07]} 16. Nxe4 {[%emt 0:00:00]} (16. Ne5 {is the only way for White.}) 16... Bxf3 {[%emt 0:02:05]} (16... Re8 $142 17. a3 Bg6 18. axb4 Bxe4) 17. gxf3 $2 {[%emt 0:00:00]} (17. Ng5 $17 Be4 18. Qxe4) 17... Qxd4 {[%emt 0:00:29]} 18. Be3 {[%emt 0:00:00]} Qd5 {[%emt 0:03:37]} 19. a3 {[%emt 0:00:00]} Be7 {[%emt 0:02:55]} 20. Rd1 {[%emt 0:00:00]} (20. Bxa7 $142 Rb7 21. Bc5 Bxc5 22. Nxc5) 20... Qe6 {[%emt 0:01:16]} 21. Ng5 $2 {[%emt 0:00:00]} (21. Kh2) 21... Bxg5 {[%emt 0:00:53]} 22. Bxg5 {[%emt 0:00:00]} Rb5 {[%emt 0:02:14]} 23. h4 {[%emt 0:00:00]} Rd5 {[%emt 0:03:19]} 24. Rc1 {[%emt 0:00:00]} h6 {[%emt 0:10:54]} 25. Be3 {[%emt 0:00:00]} (25. Bf4 $142) 25... Rh5 {[%emt 0:03:37]} (25... Qh3 $142 26. Qe2 Re8) 26. Qa4 {[%emt 0:00:00]} Qh3 {[%emt 0:00:46]} 27. Qg4 {[%emt 0:00:00]} Qxh4 {[%emt 0:02:39]} ({Don't take} 27... Rxh4 28. Qxh3 Rxh3 29. Kg2 $19) 28. Qxh4 {[%emt 0:00:00]} Rxh4 {[%emt 0:00:01]} 29. Rxc6 {[%emt 0:00:00]} Rc8 {[%emt 0:00:43]} 30. Bxa7 {[%emt 0:00:00]} Rf4 {[%emt 0:00:27]} 31. Kg2 {[%emt 0:00:00]} Kf8 {[%emt 0:02:22]} 32. Kg3 {[%emt 0:00:00]} Rf5 {[%emt 0:00:44]} 33. Rc4 {[%emt 0:00:00]} c5 {[%emt 0:02:32]} 34. b4 {[%emt 0:00:00]} Ke8 {[%emt 0:01:03]} 35. Bxc5 {[%emt 0:00:00]} Kd7 {[%emt 0:01:49]} (35... Ra8 $17 36. b5 Rc8 37. Re4+ Kd7 38. Rd4+ Ke6 39. Re4+ Re5) 36. Rg4 {[%emt 0:00:00]} g6 {[%emt 0:02:00]} 37. Rd4+ {[%emt 0:00:00]} Kc7 {[%emt 0:01:26]} 38. Rc4 {[%emt 0:00:00]} Kb7 {[%emt 0:00:15]} ({Black should try} 38... Ra8 $17 39. Rc3 h5 40. Be3+ Kd7) 39. Rd4 {[%emt 0:00:00]} Ra8 {[%emt 0:03:14]} 40. Rd3 {[%emt 0:00:00]} Kc6 {[%emt 0:01:15]} 41. Be3 {[%emt 0:00:00]} h5 {[%emt 0:00:28]} 42. Bc1 {[%emt 0:00:00]} Kb5 {[%emt 0:00:39]} 43. Rc3 {[%emt 0:00:00]} Ra6 {[%emt 0:00:20]} 44. f4 {[%emt 0:00:00]} Rc6 {[%emt 0:00:16]} 45. a4+ {[%emt 0:00:00]} Kb6 {[%emt 0:00:18]} 46. Be3+ {[%emt 0:00:00]} Kb7 {[%emt 0:00:09]} 47. Rxc6 {[%emt 0:00:00]} Kxc6 {[%emt 0:00:05]} 48. Bc5 $2 {[%emt 0:00:00]} (48. Kh3) 48... Rxc5 {[%emt 0:01:25]} 49. bxc5 {[%emt 0:00:00]} Kxc5 {[%emt 0:00:02]} 50. Kh4 {[%emt 0:00:00]} f5 {[%emt 0:00:34]} 51. Kg3 {[%emt 0:01:04]} Kb4 {[%emt 0:00:07]} 52. a5 {[%emt 0:00:16]} Kxa5 {[%emt 0:00:04]} 53. Kh3 {[%emt 0:00:15]} Kb4 {[%emt 0:00:09]} 54. Kg3 {[%emt 0:00:21]} Kc4 {[%emt 0:00:06]} 55. Kg2 {[%emt 0:00:42]} Kd4 {[%emt 0:00:49]} 56. Kh3 {[%emt 0:00:45]} Ke4 {[%emt 0:00:19]} 57. Kg3 {[%emt 0:00:31]} h4+ {[%emt 0:00:16]} 58. Kh3 {[%emt 0:02:33]} Kxf4 {[%emt 0:00:07]} 59. Kxh4 {[%emt 0:00:14]} Kf3 {[%emt 0:00:50]} 60. Kg5 {[%emt 0:00:15]} Kxf2 {[%emt 0:00:08]} 61. Kf4 {[%emt 0:17:34]} 0-1